Cogmind - Beta 15 @@@ ROGUE MODE // 2025.06.27 @ 06:32:27 Player: Crowsaint Result: Destroyed by as-67264 with Assembled Blade Performance ------------- Evolutions (0) 0 Regions Visited (4) 800 Robots Destroyed (5) 25 Value Destroyed (165) 165 Prototype IDs (0) 0 Alien Tech Used (0) 0 Bonus (0) 0 TOTAL SCORE: 990 Bonus ------- None Cogmind --------- Core Integrity 0/250 Matter 225/300 Energy 88/100 System Corruption 6% Temperature Cool (13) Movement Walking (190) Ox1 Location -9/Mines Parts ------- > --- POWER (1) -------- (None) > --- PROPULSION (2) --- Aluminum Leg Aluminum Leg > --- UTILITY (2) ------ Medium Storage Unit > --- WEAPON (2) ------- Medium Laser > --- INVENTORY (10) --- Light Ion Engine Wheel Wheel Medium Laser Mining Laser Peak State ------------ > --- POWER ------------ Light Ion Engine > --- PROPULSION ------- Aluminum Leg Aluminum Leg > --- UTILITY ---------- Small Storage Unit Targeting Computer > --- WEAPON ----------- EM Pulse Gun Medium Laser > --- INVENTORY -------- Light Ion Engine Light Treads Aluminum Leg Aluminum Leg Wheel Wheel EM Pulse Gun Medium Laser [Rating: 7] Favorites ----------- Power Light Ion Engine Engine Light Ion Engine Propulsion Aluminum Leg Leg Aluminum Leg Utility Targeting Computer Storage Small Storage Unit Processor Targeting Computer Weapon Medium Laser Energy Gun Medium Laser Ballistic Gun Assault Rifle Build | -11 -10 -10 -10 -9 ------- Run | Yrd Mat Min Exi Min Slots Evolved . | . . . . . Power . | . . . . . Propulsion . | . . . . . Utility . | . . . . . Weapon . | . . . . . Parts Attached 15 | 6 5 . 1 3 Power 1 | 1 . . . . Engine 1 | 1 . . . . Core . | . . . . . Reactor . | . . . . . Propulsion 5 | 2 2 . . 1 Treads . | . . . . . Leg 5 | 2 2 . . 1 Wheel . | . . . . . Hover . | . . . . . Flight . | . . . . . Utility 3 | 1 1 . 1 . Device . | . . . . . Storage 2 | 1 . . 1 . Processor 1 | . 1 . . . Hackware . | . . . . . Protection . | . . . . . Artifact . | . . . . . Weapon 6 | 2 2 . . 2 Energy Gun 5 | 2 1 . . 2 Energy Cannon . | . . . . . Ballistic Gun 1 | . 1 . . . Ballistic Cannon . | . . . . . Launcher . | . . . . . Special Weapon . | . . . . . Impact Weapon . | . . . . . Slashing Weapon . | . . . . . Piercing Weapon . | . . . . . Special Melee Weapon . | . . . . . Unidentified Prototypes . | . . . . . Parts Lost 7 | . 1 . . 6 Power 1 | . . . . 1 Propulsion 2 | . . . . 2 Utility 1 | . . . . 1 Weapon 3 | . 1 . . 2 Highest Loss Streak 6 | . 1 . . 6 To Critical Strikes . | . . . . . Average Backups 8 | 2 7 8 9 7 Power . | . 1 1 1 1 Propulsion 3 | 1 4 4 4 3 Utility . | . . . . . Weapon 3 | . 2 3 4 3 Tool/Special . | . . . . . Unused Backups 7 | . 3 . . 4 Power 1 | . . . . 1 Propulsion 4 | . 2 . . 2 Utility . | . . . . . Weapon 2 | . 1 . . 1 Tool/Special . | . . . . . Average Slot Usage (%) 90 | . 88 100 85 79 Engine 13 | . 14 14 13 14 Leg 27 | . 28 28 28 22 Storage 14 | . 14 14 14 14 Processor 11 | . 3 14 14 8 Energy Gun 20 | . 23 28 14 19 Ballistic Gun 1 | . 4 . . . Peak Build Rating 7 | 6 7 7 7 7 Average Rating 6 | 4 6 7 6 5 On Entrance 5 | . 6 7 7 6 Naked Turns . | . . . . . Heaviest Build 17 | 12 12 12 17 17 Greatest Support 20 | 20 20 20 20 20 Greatest Overweight (x) 2 | 2 . . . 1 Average Overweight (x) . | . . . . . Largest Inventory Capacity 10 | 8 8 8 10 10 Average Capacity 8 | 7 8 8 9 10 Most Carried 10 | 6 8 8 10 10 Average Carried 8 | 3 7 8 9 7 Final Capacity 10 | 8 8 8 10 10 Final Carried 10 | 6 8 8 10 5 Class Distribution -------------------- 100% | Mutant Dominant Class ---------------- Mutant | -10/Materials Mutant | -10/Mines Mutant | -10/Exiles Mutant | -9/Mines Resources | -11 -10 -10 -10 -9 ----------- Run | Yrd Mat Min Exi Min Matter Collected 384 | 185 197 2 . . Remotely . | . . . . . Salvage Created 238 | . 219 . . 19 Parts 8 | . 8 . . . Haulers Intercepted . | . . . . . Recyclers Shooed . | . . . . . Parts Field Recycled . | . . . . . Retrieved Matter . | . . . . . Parts Self-Destructed . | . . . . . Prevented . | . . . . . Kills | -11 -10 -10 -10 -9 ------- Run | Yrd Mat Min Exi Min Combat Hostiles Destroyed 5 | . 4 . . 1 Guns 5 | . 4 . . 1 Classes Destroyed 3 | . 2 . . 1 Watcher 1 | . 1 . . . Grunt 4 | . 4 . . . Assembled 1 | . . . . 1 Best Kill Streak 3 | . 3 . . 1 Combat Bots Only 3 | . 3 . . 1 Max Kills in Single Turn 1 | . 1 . . 1 Gunslinging . | . . . . . Exploded . | . . . . . Melee . | . . . . . Uniques/NPCs Destroyed . | . . . . . Combat | -11 -10 -10 -10 -9 -------- Run | Yrd Mat Min Exi Min Hostile Shots Fired 89 | . 40 . . 49 Missed 20 | . 7 . . 13 Hits 69 | . 33 . . 36 Melee 8 | . . . . 8 Projectile 61 | . 33 . . 28 Critical Strikes 1 | . 1 . . . Part Disruptions 1 | . . . . 1 Damage Taken 1027 | . 388 . . 639 Core 267 | . 105 . . 162 Absorbed by Shields . | . . . . . Core Remaining (%) 100 | 100 . . . . Volleys Fired 36 | . 29 . . 7 Largest 2 | . 2 . . 2 Hottest 90 | . 90 . . 90 Shots Fired 59 | . 46 . 1 12 Gun 59 | . 46 . 1 12 Cannon . | . . . . . Launcher . | . . . . . Special . | . . . . . Kinetic 24 | . 24 . . . Thermal 24 | . 17 . . 7 Explosive . | . . . . . Electromagnetic 11 | . 5 . 1 5 Robot Hit Streak 10 | . 10 . . 2 Robot Miss Streak 3 | . 3 . . 3 Penetration Max . | . . . . . Secondary Targets . | . . . . . Shots Hit Robots 40 | . 34 . . 6 Core Hits 14 | . 11 . . 3 Critical Kills . | . . . . . Critical Parts Destroyed 1 | . 1 . . . Critical Strikes 3 | . 2 . . 1 Burn 2 | . 1 . . 1 Destroy 1 | . 1 . . . Melee Attacks . | . . . . . Impact . | . . . . . Slashing . | . . . . . Piercing . | . . . . . Sneak Attacks . | . . . . . Combat Hostiles . | . . . . . Follow-up Attacks . | . . . . . Damage Inflicted 562 | . 462 10 . 90 Guns 528 | . 444 . . 84 Cannons . | . . . . . Explosions . | . . . . . Melee . | . . . . . Ramming 34 | . 18 10 . 6 Kinetic 227 | . 227 . . . Thermal 239 | . 177 . . 62 Explosive . | . . . . . Electromagnetic 62 | . 40 . . 22 Impact . | . . . . . Slashing . | . . . . . Piercing . | . . . . . Highest Corruption 6 | . 2 2 2 6 Average Corruption 2 | . 2 2 2 3 Corruption Purged . | . . . . . Corruption Blocked . | . . . . . Effects 21 | . 1 4 16 . Message Errors 3 | . . 1 2 . Matter Fused 7 | . 1 1 5 . Heat Flow Errors 5 | . . 1 4 . Energy Discharges 2 | . . . 2 . Data Loss (minor) 2 | . . 1 1 . Data Loss (major) 1 | . . . 1 . Misfires 1 | . . . 1 . Overload Shots . | . . . . . Overflow Damage . | . . . . . Projectiles . | . . . . . Explosions . | . . . . . Melee . | . . . . . Knockbacks 1 | . 1 . . . Impact 1 | . 1 . . . Kinetic . | . . . . . Secondary . | . . . . . Self-Inflicted Damage . | . . . . . Shots . | . . . . . Rammed . | . . . . . Targets Rammed 8 | . 5 1 . 2 Kicked 8 | . 5 1 . 2 Crushed . | . . . . . Highest Temperature 203 | . 132 104 203 122 Average Temperature 62 | . 54 58 87 50 Received Heat Transfer 300 | . 240 . . 60 Siege Activations . | . . . . . Martial Activations . | . . . . . Shielding Activations . | . . . . . Robots Disrupted . | . . . . . Combat Hostiles . | . . . . . Robots Corrupted . | . . . . . Combat Hostiles . | . . . . . Parts Fried . | . . . . . Impact Corruptions . | . . . . . Robots Melted . | . . . . . Combat Hostiles . | . . . . . Parts Melted 1 | . 1 . . . Heat Transferred 851 | . 592 . . 259 Parts Sabotaged . | . . . . . Parts Stolen . | . . . . . Parts Stripped . | . . . . . Power Chain Reactions . | . . . . . Alert | -11 -10 -10 -10 -9 ------- Run | Yrd Mat Min Exi Min Maximum Alert Level . | . . . . . Low Security (%) 100 | 100 100 100 . 100 Level 1 . | . . . . . Level 2 . | . . . . . Level 3 . | . . . . . Level 4 . | . . . . . Level 5 . | . . . . . High Security . | . . . . . Max Security . | . . . . . Peak Influence 70 | . 70 3 . . Initial 3 | . . 3 . . Average 6 | . 18 . . . Influence Increases 107 | . 107 . . . Destroy 0b10 Robot/C 80 | . 80 . . . Destroy 0b10 Robot/NC 5 | . 5 . . . Destroy Leader 22 | . 22 . . . Influence Decreases 107 | . 97 10 . . Entered New Map 7 | . . 7 . . Time Decay 90 | . 87 3 . . Lost Part 10 | . 10 . . . Squads Dispatched 1 | . 1 . . . Investigation . | . . . . . Extermination . | . . . . . Reinforcement 1 | . 1 . . . Assault . | . . . . . Garrison . | . . . . . Intercept . | . . . . . Searches Triggered . | . . . . . Construction Impeded . | . . . . . Haulers Reinforced . | . . . . . Active Scanning Responses . | . . . . . Cargo Convoy Interrupts . | . . . . . Stealth | -11 -10 -10 -10 -9 --------- Run | Yrd Mat Min Exi Min Distress Signals 1 | . 1 . . . Communications Jammed . | . . . . . Distress Signals . | . . . . . Times Spotted 31 | . 8 . . 23 Peak Tracking Total 20 | . 3 . . 20 Tactical Retreats 1 | . . . . 1 Traps | -11 -10 -10 -10 -9 ------- Run | Yrd Mat Min Exi Min Traps Triggered 1 | . 1 . . . Indirectly . | . . . . . Trap Hack Attempts . | . . . . . Triggered . | . . . . . Disarmed . | . . . . . Reprogrammed . | . . . . . Reused . | . . . . . Traps Extracted . | . . . . . Installed . | . . . . . Triggered . | . . . . . Machines | -11 -10 -10 -10 -9 ---------- Run | Yrd Mat Min Exi Min Machines Disabled 1 | . . . 1 . Max in Single Turn 1 | . . . 1 . Machines Repaired . | . . . . . Machines Dismantled . | . . . . . Machines Sabotaged . | . . . . . Overloaded Fab Kills . | . . . . . Hacking | -11 -10 -10 -10 -9 --------- Run | Yrd Mat Min Exi Min Machines Accessed 6 | . 1 . 4 1 Terminals 1 | . 1 . . . Fabricators . | . . . . . Repair Stations . | . . . . . Recycling Units . | . . . . . Scanalyzers . | . . . . . Garrison Access . | . . . . . Total Hacks 51 | . 1 . 49 1 Successful 51 | . 1 . 49 1 Failed . | . . . . . Catastrophic . | . . . . . Database Lockouts . | . . . . . Manual 2 | . 1 . 1 . Terminals 1 | . 1 . . . Fabricators . | . . . . . Repair Stations . | . . . . . Recycling Units . | . . . . . Scanalyzers . | . . . . . Garrison Access . | . . . . . Terminal Hacks 51 | . 1 . 49 1 Record 49 | . . . 49 . Open Door 1 | . . . . 1 Branch Access Points 1 | . 1 . . . Fabricator Hacks . | . . . . . Repair Station Hacks . | . . . . . Recycling Unit Hacks . | . . . . . Scanalyzer . | . . . . . Garrison Access Hacks . | . . . . . Unauthorized Hacks . | . . . . . Terminals . | . . . . . Fabricators . | . . . . . Repair Stations . | . . . . . Recycling Units . | . . . . . Scanalyzers . | . . . . . Garrison Access . | . . . . . Data Cores Recovered . | . . . . . Used . | . . . . . Hacking Detections 1 | . 1 . . . Full Trace Events . | . . . . . Feedback Events . | . . . . . Feedback Blocked . | . . . . . Robot Schematics Acquired . | . . . . . Robots Built . | . . . . . Authchips . | . . . . . Time . | . . . . . Total Robot Build Rating . | . . . . . Part Schematics Acquired . | . . . . . Parts Built . | . . . . . Authchips . | . . . . . Time . | . . . . . Total Part Build Rating . | . . . . . Parts Repaired . | . . . . . Time . | . . . . . Parts Recycled . | . . . . . Recycled Matter . | . . . . . Retrieved Matter . | . . . . . Retrieved Components . | . . . . . Parts Scanalyzed . | . . . . . Part Schematics Acquired . | . . . . . Parts Damaged . | . . . . . Bothacking | -11 -10 -10 -10 -9 ------------ Run | Yrd Mat Min Exi Min Used RIF Installer . | . . . . . Robots Hacked . | . . . . . Non-combat . | . . . . . Combat . | . . . . . Robot Hacks Applied . | . . . . . Relay Couplers Released . | . . . . . Fabnet Peak Effective % . | . . . . . Robots Rewired . | . . . . . Allies Hacked . | . . . . . Hacks Repelled . | . . . . . Allies | -11 -10 -10 -10 -9 -------- Run | Yrd Mat Min Exi Min Total Allies . | . . . . . Largest Group . | . . . . . Highest-Rated Group . | . . . . . Highest-Rated Ally . | . . . . . Total Orders . | . . . . . Ally Attacks . | . . . . . Total Damage . | . . . . . Kills . | . . . . . Allies Corrupted . | . . . . . Allies Melted . | . . . . . Intel | -11 -10 -10 -10 -9 ------- Run | Yrd Mat Min Exi Min Active Infowar (turns) . | . . . . . Robot Analysis Total . | . . . . . Derelict Logs Recovered 3 | . . 3 . . Drone Launches . | . . . . . Drone Recoveries . | . . . . . Exploration | -11 -10 -10 -10 -9 ------------- Run | Yrd Mat Min Exi Min Turns Passed 1695 | 72 358 536 685 44 Spaces Moved 1292 | 48 216 446 568 14 Core 9 | 9 . . . . Treads . | . . . . . Legs 1283 | 39 216 446 568 14 Wheels . | . . . . . Hover . | . . . . . Flight . | . . . . . Fastest Speed 50 | 50 120 120 120 120 Average Speed 120 | 120 120 120 120 125 Slowest Speed 190 | 150 120 120 120 190 Overloaded Moves . | . . . . . Propulsion Burnouts . | . . . . . Robots Hopped . | . . . . . Potential Cave-ins . | . . . . . Cave-ins Triggered . | . . . . . Exploration Rate (%) 47 | 4 50 86 91 4 Regions Visited 4 Branch Regions 3 Pre-discovered Areas 2 | . . 1 1 . Known Exits Taken 1 | . 1 . . . Unknown Exits Taken 3 | 1 . 1 1 . Scrap Searched 1 | . . 1 . . Spaces Dug . | . . . . . Terrain Destroyed . | . . . . . Melee . | . . . . . Projectile . | . . . . . AOE . | . . . . . Terrain Rammed . | . . . . . Walls Destroyed . | . . . . . Machines Disabled . | . . . . . Actions | -11 -10 -10 -10 -9 --------- Run | Yrd Mat Min Exi Min Total 1375 | 59 269 446 573 28 Wait 4 | . 4 . . . Move 1288 | 47 215 445 567 14 Hop . | . . . . . Pick Up 11 | 6 5 . . . Fast Attach 8 | 6 1 . 1 . Attach 6 | . 1 . . 5 Detach 2 | . . . 2 . Swap 5 | . 4 . 1 . Drop 7 | . 5 . 2 . Fire 36 | . 29 . . 7 Melee . | . . . . . Ram . | . . . . . Kick 8 | . 5 1 . 2 Crush . | . . . . . Escape Stasis . | . . . . . Rewire . | . . . . . Trap . | . . . . . Miscellaneous . | . . . . . Route ------- -11/Scrapyard -10/Materials (discovered 3 exits: [*Mat] / *Min x2) -10/Mines (discovered 2 exits: [*Mat] / *Exi) -10/Exiles (discovered 2 exits: *Min x2) -9/Mines History --------- Turn | Location | Event 22 | -11/Scrapyard | Discovered new exit (range 16) 73 | -11/Scrapyard | Entered Materials 357 | -10/Materials | Discovered new exit (range 16) 362 | -10/Materials | Build established: Mutant 363 | -10/Materials | Identified exit to Mines 431 | -10/Materials | Entered Mines 452 | -10/Mines | Deemed a non-threat by the Exiles lab entrance 452 | -10/Mines | Discovered new exit (range 5) 597 | -10/Mines | Discovered new exit (range 9) 633 | -10/Mines | Learned 2 Materials zone layouts 781 | -10/Mines | Found a hidden stash of uninstalled traps 818 | -10/Mines | Learned location of Storage (-8) 967 | -10/Mines | Entered Exiles 1011 | -10/Exiles | Met 8R-AWN 1034 | -10/Exiles | Met EX-HEX 1075 | -10/Exiles | Met EX-BIN 1215 | -10/Exiles | Met EX-DEC 1223 | -10/Exiles | Learned location of Zion (-6) 1345 | -10/Exiles | Discovered new exit (range 14) 1446 | -10/Exiles | Visited The Gauntlet 1638 | -10/Exiles | Discovered new exit (range 14) 1652 | -10/Exiles | Entered Mines 1653 | -9/Mines | Assembled infested the area 1658 | -9/Mines | Assisted by a Guerilla fighting off Assembled 1664 | -9/Mines | Found the Drone Emporium 1680 | -9/Mines | Core integrity fell below 50% 1696 | -9/Mines | Core integrity fell below 20% 1696 | -9/Mines | Destroyed by as-67264 with Assembled Blade Last Messages --------------- drones for all! No strings attached!" ZF-RZR(h) destroyed. SHOP.Sys disabled. as-17231 destroyed. EM Pulse Gun destroyed. System corrupted by crushing effect (+1). as-93314 suffers critical hit (Burn). as-44849 suffers critical hit (Burn). Targeting Computer destroyed. System corrupted by crushing effect (+3). as-93314 destroyed. as-44849 suffers critical hit (Burn). 62-LRU(g) destroyed. Aluminum Leg destroyed. as-44849 destroyed. Aluminum Leg destroyed. Lgt. Ion Engine destroyed. EM Pulse Gun destroyed. Kicked as-86067. Kicked as-86067 out of the way. Map ----- +----------------------------------------------------+ | ??????????????????????????????????? | | ??????????????????????????????????? | | ??????????????????????????????????? | | ??????????????????????????????????? | | ??????????????????????????????????? | | ??????????????????????????????????? | | ??????????????????????????????????? | | ??????????????????????????????????? | | ??????????????????????????????????? | | ??????????????????????????????????? | | ??????????????????????????????????? | | ??????????????????????????????????? | | ??????????????????????????????????? | | ??????????????????????????????????? | | ??????????????????????????????????? | | ??????????????????????????????????? | | ??????????????????????????????????? | | ??????????????????????????????????? | | ??????????????????????????????????? | | ??????????????????????????????????? | | ??????????????????????######??????? | | ?????????????????????##""""##?????? | | ?????????????????????#" ! "#?????? | | ?????????????????????#" %!"#?????? | | ?????????????????????## a%##?????? | | ?????????????????????###a@###?????? | | ?????????????????????# aaaa #?????? | | ?????????????????????#aaaa ##????? | | ???????????????????##;a a #????? | | ??????? < ##%a* #????? | | ????????????# %a%%! ####????? | | ???????????# ###;=# ##???????? | | ??????????????????########????????? | | ??????????????????????????????????? | | ??????????????????????????????????? | | ??????????????????????????????????? | | ??????????????????????????????????? | | ??????????????????????????????????? | | ??????????????????????????????????? | | ??????????????????????????????????? | | ??????????????????????????????????? | | ??????????????????????????????????? | | ??????????????????????????????????? | | ??????????????????????????????????? | | ??????????????????????????????????? | | ??????????????????????????????????? | | ??????????????????????????????????? | | ??????????????????????????????????? | | ??????????????????????????????????? | | ??????????????????????????????????? | +----------------------------------------------------+ Best States ------------- Heat Dissipation 25 Energy Generation 10 Energy Capacity 125 Matter Stores 300 Matter Capacity 300 Sight Range 16 Terrain Scan Density 10 Evasion (%) 55 Targeting Accuracy 5 Item Schematics ----------------- None Robot Schematics ------------------ None Fabricated ------------ Nothing Repaired ---------- Nothing Alien Tech Used ----------------- None Achievements -------------- Hunted Challenges ------------ None Game ------ Seed PhysicsShrapnelCapacitor Manual? 0 Play Time 00:24:59 Cumulative 20.5 hours Start 2025.06.27 @ 06:06:50 End 2025.06.27 @ 06:32:27 Sessions 1 Manual Loads 0 Difficulty Rogue Special Mode None Game No. 23 Rogue 22 Adventurer 1 Explorer 0 Win Type - Total 0 Types 0/0/0/0/0/0/0/0/0/0 Lore% 11 Gallery% 16 Achievement% 19 Wizard Run 0 Options --------- Layout 1 ASCII 1 Keyboard 1 Movement Vi Keybinds 0 Fullscreen 1 Font 24/Smallcaps Map View 50x35 Zoom Use 0% Tactical HUD 0 Map Filters NONE Filters NONE Steam 1 RUN: 80590a71-329a-4696-a101-8f3cef30a108